[Event "*** SCC Grand Prix: Titled Tuesday Blitz"]
[Site "Chess.com"]
[Date "2020.06.02"]
[Round "3"]
[White "ShapkinAnatoliy"]
[Black "Bulldog167"]
[Result "1/2-1/2"]
[WhiteElo "2575"]
[BlackElo "2762"]
[TimeControl "180+1"]
[EndTime "10:29:32 PDT"]
[Termination "Game drawn - insufficient material"]

1. d4 {[%clk 0:02:57.8]} 1... Nf6 {[%clk 0:02:59.3]} 2. c4 {[%clk 0:02:55.5]}
2... g6 {[%clk 0:02:56.4]} 3. Nc3 {[%clk 0:02:54.8]} 3... d5 {[%clk 0:02:56.9]}
4. Nf3 {[%clk 0:02:54]} 4... Bg7 {[%clk 0:02:56.9]} 5. cxd5 {[%clk 0:02:54.5]}
5... Nxd5 {[%clk 0:02:57]} 6. e4 {[%clk 0:02:55.4]} 6... Nxc3 {[%clk 0:02:57.4]}
7. bxc3 {[%clk 0:02:56.3]} 7... c5 {[%clk 0:02:57.8]} 8. Be3 {[%clk 0:02:56.1]}
8... Qa5 {[%clk 0:02:57.7]} 9. Qd2 {[%clk 0:02:54.3]} 9... O-O {[%clk
0:02:53.2]} 10. Rc1 {[%clk 0:02:52.6]} 10... cxd4 {[%clk 0:02:47.6]} 11. cxd4
{[%clk 0:02:51.7]} 11... Qxd2+ {[%clk 0:02:47.6]} 12. Kxd2 {[%clk 0:02:47]}
12... Rd8 {[%clk 0:02:46.2]} 13. Rc7 {[%clk 0:02:34.1]} 13... Nc6 {[%clk
0:02:40]} 14. d5 {[%clk 0:02:30.9]} 14... e6 {[%clk 0:02:32]} 15. Bc4 {[%clk
0:01:36.3]} 15... Na5 {[%clk 0:02:31]} 16. Bd3 {[%clk 0:01:12.4]} 16... exd5
{[%clk 0:02:28.3]} 17. exd5 {[%clk 0:01:13.3]} 17... Rxd5 {[%clk 0:02:24.1]} 18.
Ke2 {[%clk 0:01:13.5]} 18... Bg4 {[%clk 0:02:02.3]} 19. Rhc1 {[%clk 0:01:08.7]}
19... Rad8 {[%clk 0:01:56.6]} 20. Be4 {[%clk 0:01:02.9]} 20... Rb5 {[%clk
0:01:56.6]} 21. R1c2 {[%clk 0:01:01.2]} 21... Nc6 {[%clk 0:01:29.1]} 22. Bxc6
{[%clk 0:00:51.3]} 22... bxc6 {[%clk 0:01:30]} 23. R7xc6 {[%clk 0:00:46.7]}
23... a5 {[%clk 0:01:13.9]} 24. h3 {[%clk 0:00:38.2]} 24... Bf5 {[%clk
0:01:13.2]} 25. Rd2 {[%clk 0:00:38.7]} 25... Rxd2+ {[%clk 0:01:13.2]} 26. Nxd2
{[%clk 0:00:39.6]} 26... Bf8 {[%clk 0:01:03.6]} 27. Ra6 {[%clk 0:00:38.8]} 27...
Be6 {[%clk 0:01:00.1]} 28. Ra8 {[%clk 0:00:38]} 28... Bd5 {[%clk 0:00:55.4]} 29.
Rd8 {[%clk 0:00:33.9]} 29... Kg7 {[%clk 0:00:55.2]} 30. Bd4+ {[%clk 0:00:30.8]}
30... f6 {[%clk 0:00:55.4]} 31. Bxf6+ {[%clk 0:00:30.3]} 31... Kxf6 {[%clk
0:00:56.2]} 32. Rxf8+ {[%clk 0:00:31]} 32... Ke7 {[%clk 0:00:56]} 33. Rh8 {[%clk
0:00:27.4]} 33... Bxa2 {[%clk 0:00:55.7]} 34. Rxh7+ {[%clk 0:00:27.6]} 34... Bf7
{[%clk 0:00:55.2]} 35. Rh4 {[%clk 0:00:25.2]} 35... Kd6 {[%clk 0:00:48.6]} 36.
Ra4 {[%clk 0:00:22.3]} 36... Kc6 {[%clk 0:00:46.2]} 37. f4 {[%clk 0:00:22.2]}
37... Rc5 {[%clk 0:00:38.7]} 38. g4 {[%clk 0:00:20.8]} 38... Kb5 {[%clk
0:00:39.2]} 39. Ra1 {[%clk 0:00:19.5]} 39... a4 {[%clk 0:00:39.8]} 40. Kd3
{[%clk 0:00:19.6]} 40... Kb4 {[%clk 0:00:35.5]} 41. Ne4 {[%clk 0:00:15.5]} 41...
Bc4+ {[%clk 0:00:29.1]} 42. Ke3 {[%clk 0:00:12.7]} 42... Rd5 {[%clk 0:00:29.3]}
43. Rxa4+ {[%clk 0:00:12.1]} 43... Kxa4 {[%clk 0:00:28]} 44. Nc3+ {[%clk
0:00:12.6]} 44... Kb4 {[%clk 0:00:28.6]} 45. Nxd5+ {[%clk 0:00:13]} 45... Bxd5
{[%clk 0:00:29.5]} 46. Kd4 {[%clk 0:00:11.3]} 46... Bg2 {[%clk 0:00:27.1]} 47.
h4 {[%clk 0:00:11]} 47... Bf3 {[%clk 0:00:26]} 48. f5 {[%clk 0:00:08.3]} 48...
gxf5 {[%clk 0:00:25.5]} 49. gxf5 {[%clk 0:00:09.2]} 49... Bh5 {[%clk 0:00:22.7]}
50. Kd5 {[%clk 0:00:09.3]} 50... Kc3 {[%clk 0:00:16.6]} 51. Ke6 {[%clk
0:00:09.4]} 51... Kd4 {[%clk 0:00:16.9]} 52. f6 {[%clk 0:00:10.3]} 52... Ke4
{[%clk 0:00:17.4]} 53. f7 {[%clk 0:00:10.5]} 53... Bxf7+ {[%clk 0:00:18]} 54.
Kxf7 {[%clk 0:00:11]} 54... Kf5 {[%clk 0:00:18.7]} 55. h5 {[%clk 0:00:07.4]}
55... Kg5 {[%clk 0:00:18.9]} 56. h6 {[%clk 0:00:07.7]} 56... Kxh6 {[%clk
0:00:19.2]} 1/2-1/2

[Event "*** SCC Grand Prix: Titled Tuesday Blitz"]
[Site "Chess.com"]
[Date "2020.06.02"]
[Round "3"]
[White "MilosJi"]
[Black "Redbandit87"]
[Result "0-1"]
[WhiteElo "2511"]
[BlackElo "2347"]
[TimeControl "180+1"]
[EndTime "10:29:32 PDT"]
[Termination "Redbandit87 won by checkmate"]

1. Nf3 {[%clk 0:02:59.9]} 1... d5 {[%clk 0:02:57.6]} 2. c4 {[%clk 0:02:59.8]}
2... e6 {[%clk 0:02:57.2]} 3. g3 {[%clk 0:02:59.3]} 3... Nf6 {[%clk 0:02:57.2]}
4. Bg2 {[%clk 0:02:59.5]} 4... c6 {[%clk 0:02:57.2]} 5. Qc2 {[%clk 0:02:57.6]}
5... Bd6 {[%clk 0:02:56.6]} 6. O-O {[%clk 0:02:57.4]} 6... O-O {[%clk
0:02:56.5]} 7. b3 {[%clk 0:02:57.7]} 7... Nbd7 {[%clk 0:02:55.2]} 8. Bb2 {[%clk
0:02:57.7]} 8... a5 {[%clk 0:02:31.3]} 9. Nc3 {[%clk 0:02:53.4]} 9... b6 {[%clk
0:02:29.1]} 10. cxd5 {[%clk 0:02:48.2]} 10... exd5 {[%clk 0:02:24.4]} 11. d4
{[%clk 0:02:46.2]} 11... Ba6 {[%clk 0:02:21.5]} 12. Rfd1 {[%clk 0:02:45.6]}
12... Re8 {[%clk 0:02:20]} 13. Rac1 {[%clk 0:02:44.9]} 13... Rc8 {[%clk
0:02:19.5]} 14. e3 {[%clk 0:02:43.7]} 14... g6 {[%clk 0:02:07.7]} 15. Qb1 {[%clk
0:02:39.8]} 15... Qe7 {[%clk 0:02:00.7]} 16. Ne1 {[%clk 0:02:28.3]} 16... Ng4
{[%clk 0:01:53.5]} 17. Nd3 {[%clk 0:02:25.6]} 17... f5 {[%clk 0:01:51.5]} 18.
Re1 {[%clk 0:02:17]} 18... Ndf6 {[%clk 0:01:49.2]} 19. h3 {[%clk 0:02:13.5]}
19... Nh6 {[%clk 0:01:48.9]} 20. f4 {[%clk 0:02:12.8]} 20... Ne4 {[%clk
0:01:48.2]} 21. Nxe4 {[%clk 0:02:10]} 21... fxe4 {[%clk 0:01:47.6]} 22. Ne5
{[%clk 0:02:09.7]} 22... Bxe5 {[%clk 0:01:36.6]} 23. dxe5 {[%clk 0:02:09.1]}
23... Qe6 {[%clk 0:01:32.6]} 24. g4 {[%clk 0:02:03.7]} 24... Bd3 {[%clk
0:01:32.1]} 25. Qa1 {[%clk 0:02:03.3]} 25... Rf8 {[%clk 0:01:31.2]} 26. Bc3
{[%clk 0:02:01.8]} 26... c5 {[%clk 0:01:30.6]} 27. Qb2 {[%clk 0:02:01.8]} 27...
Ra8 {[%clk 0:01:11.6]} 28. Qf2 {[%clk 0:01:59.2]} 28... b5 {[%clk 0:01:11.1]}
29. Qg3 {[%clk 0:01:53.8]} 29... Kh8 {[%clk 0:01:06.1]} 30. Bf1 {[%clk
0:01:40.2]} 30... b4 {[%clk 0:01:00.8]} 31. Bb2 {[%clk 0:01:37]} 31... c4 {[%clk
0:00:58.5]} 32. Bd4 {[%clk 0:01:33.7]} 32... Bxf1 {[%clk 0:00:57]} 33. Rxf1
{[%clk 0:01:32.8]} 33... c3 {[%clk 0:00:57.5]} 34. Qh4 {[%clk 0:01:28.4]} 34...
Kg7 {[%clk 0:00:47.2]} 35. Rf2 {[%clk 0:01:13.8]} 35... a4 {[%clk 0:00:42.7]}
36. Rcf1 {[%clk 0:01:02.9]} 36... axb3 {[%clk 0:00:41.7]} 37. axb3 {[%clk
0:01:03]} 37... Nf5 {[%clk 0:00:15.5]} 38. gxf5 {[%clk 0:01:00.2]} 38... Rxf5
{[%clk 0:00:16.4]} 39. Rg2 {[%clk 0:00:55.4]} 39... Ra3 {[%clk 0:00:15.8]} 40.
Rb1 {[%clk 0:00:50]} 40... Kh8 {[%clk 0:00:12.4]} 41. Qd8+ {[%clk 0:00:48.9]}
41... Kg7 {[%clk 0:00:12.8]} 42. Qc7+ {[%clk 0:00:45.8]} 42... Kh6 {[%clk
0:00:13.1]} 43. Qb8 {[%clk 0:00:43.1]} 43... Qe7 {[%clk 0:00:06.3]} 44. Qb5
{[%clk 0:00:39.6]} 44... Rh5 {[%clk 0:00:05.5]} 45. Rh2 {[%clk 0:00:31.3]} 45...
c2 {[%clk 0:00:05.2]} 46. Rxc2 {[%clk 0:00:25.6]} 46... Rxh3 {[%clk 0:00:05.4]}
47. Rg2 {[%clk 0:00:12.6]} 47... Ra2 {[%clk 0:00:04.1]} 48. Rxa2 {[%clk
0:00:11.4]} 48... Qh4 {[%clk 0:00:03.8]} 49. Kf1 {[%clk 0:00:05.3]} 49... Rh1+
{[%clk 0:00:01.7]} 50. Ke2 {[%clk 0:00:05.5]} 50... Qh2# {[%clk 0:00:01.8]} 0-1

[Event "*** SCC Grand Prix: Titled Tuesday Blitz"]
[Site "Chess.com"]
[Date "2020.06.02"]
[Round "3"]
[White "ZarinaShafigullina"]
[Black "Gromes7"]
[Result "0-1"]
[WhiteElo "2272"]
[BlackElo "2031"]
[TimeControl "180+1"]
[EndTime "10:29:32 PDT"]
[Termination "Gromes7 won by resignation"]

1. d4 {[%clk 0:03:00.9]} 1... Nf6 {[%clk 0:02:59.1]} 2. Nf3 {[%clk 0:03:01.8]}
2... e6 {[%clk 0:02:58.7]} 3. g3 {[%clk 0:03:02.3]} 3... b6 {[%clk 0:02:57.6]}
4. Bg2 {[%clk 0:03:02.4]} 4... Bb7 {[%clk 0:02:57.9]} 5. O-O {[%clk 0:03:03.3]}
5... Be7 {[%clk 0:02:54.3]} 6. c4 {[%clk 0:03:03.9]} 6... O-O {[%clk 0:02:53.9]}
7. Nc3 {[%clk 0:03:04.5]} 7... d6 {[%clk 0:02:51.6]} 8. Qc2 {[%clk 0:03:00.9]}
8... Nbd7 {[%clk 0:02:50.1]} 9. e4 {[%clk 0:03:00.4]} 9... e5 {[%clk 0:02:47.7]}
10. d5 {[%clk 0:03:00]} 10... a5 {[%clk 0:02:47.7]} 11. Rb1 {[%clk 0:02:56.5]}
11... Nc5 {[%clk 0:02:46.6]} 12. b3 {[%clk 0:02:56.2]} 12... Bc8 {[%clk
0:02:39.7]} 13. a3 {[%clk 0:02:55.6]} 13... Bd7 {[%clk 0:02:31]} 14. Bd2 {[%clk
0:02:40.3]} 14... Qc8 {[%clk 0:02:30.5]} 15. Rfe1 {[%clk 0:02:37.6]} 15... h6
{[%clk 0:02:25.7]} 16. b4 {[%clk 0:02:21.7]} 16... axb4 {[%clk 0:02:25.1]} 17.
axb4 {[%clk 0:02:21.9]} 17... Na4 {[%clk 0:02:25.1]} 18. Nxa4 {[%clk 0:02:20.4]}
18... Rxa4 {[%clk 0:02:19.7]} 19. Ra1 {[%clk 0:02:12.9]} 19... Qa8 {[%clk
0:02:13.6]} 20. Bc3 {[%clk 0:02:12.7]} 20... Qa7 {[%clk 0:01:32.1]} 21. Rxa4
{[%clk 0:01:58.4]} 21... Qxa4 {[%clk 0:01:26.9]} 22. Qxa4 {[%clk 0:01:57.9]}
22... Bxa4 {[%clk 0:01:27]} 23. c5 {[%clk 0:01:58.2]} 23... bxc5 {[%clk
0:01:18.2]} 24. bxc5 {[%clk 0:01:58]} 24... dxc5 {[%clk 0:01:15.2]} 25. Nxe5
{[%clk 0:01:55.8]} 25... Bd6 {[%clk 0:01:13.2]} 26. Nc4 {[%clk 0:01:51.9]} 26...
Bb5 {[%clk 0:00:54.3]} 27. Bf1 {[%clk 0:01:45]} 27... Bxc4 {[%clk 0:00:53.5]}
28. Bxc4 {[%clk 0:01:44.2]} 28... Nd7 {[%clk 0:00:43.9]} 29. f4 {[%clk
0:01:38.7]} 29... Nb6 {[%clk 0:00:41]} 30. Bb5 {[%clk 0:01:36.4]} 30... Ra8
{[%clk 0:00:39.4]} 31. Bc6 {[%clk 0:01:24]} 31... Ra3 {[%clk 0:00:37.9]} 32. Be5
{[%clk 0:01:19.1]} 32... Bxe5 {[%clk 0:00:36.9]} 33. fxe5 {[%clk 0:01:18.9]}
33... Kf8 {[%clk 0:00:35.3]} 34. d6 {[%clk 0:00:58.5]} 34... cxd6 {[%clk
0:00:32]} 35. exd6 {[%clk 0:00:58.1]} 35... Rd3 {[%clk 0:00:31.8]} 36. e5 {[%clk
0:00:56.2]} 36... Nc4 {[%clk 0:00:29.2]} 37. Re4 {[%clk 0:00:46.2]} 37... Nd2
{[%clk 0:00:26.4]} 38. Ra4 {[%clk 0:00:40.6]} 38... f6 {[%clk 0:00:26.4]} 39.
Ra8+ {[%clk 0:00:26.1]} 39... Kf7 {[%clk 0:00:26.1]} 40. d7 {[%clk 0:00:23.6]}
40... Nf3+ {[%clk 0:00:18.6]} 41. Bxf3 {[%clk 0:00:13.7]} 41... Rxd7 {[%clk
0:00:18.2]} 42. exf6 {[%clk 0:00:14.1]} 42... Kxf6 {[%clk 0:00:17.5]} 43. Rc8
{[%clk 0:00:14.7]} 43... Rd3 {[%clk 0:00:14.5]} 44. Kf2 {[%clk 0:00:13.7]} 44...
Rc3 {[%clk 0:00:14.5]} 45. Be2 {[%clk 0:00:14]} 45... Ke5 {[%clk 0:00:13.5]} 46.
Rc7 {[%clk 0:00:14.1]} 46... g5 {[%clk 0:00:12.7]} 47. Rc6 {[%clk 0:00:14.3]}
47... h5 {[%clk 0:00:12.9]} 48. Bxh5 {[%clk 0:00:14.4]} 48... Kd5 {[%clk
0:00:10.6]} 49. Be2 {[%clk 0:00:14.9]} 49... Kxc6 {[%clk 0:00:10.1]} 50. h4
{[%clk 0:00:15.1]} 50... gxh4 {[%clk 0:00:09.5]} 51. gxh4 {[%clk 0:00:15.2]}
51... Kd6 {[%clk 0:00:10.4]} 52. h5 {[%clk 0:00:15.5]} 52... Ke6 {[%clk
0:00:10.5]} 53. h6 {[%clk 0:00:16]} 53... Kf6 {[%clk 0:00:10.7]} 54. h7 {[%clk
0:00:16.5]} 54... Kg7 {[%clk 0:00:10.8]} 0-1

[Event "*** SCC Grand Prix: Titled Tuesday Blitz"]
[Site "Chess.com"]
[Date "2020.06.02"]
[Round "3"]
[White "Andreikka"]
[Black "albi1999"]
[Result "1-0"]
[WhiteElo "2929"]
[BlackElo "2658"]
[TimeControl "180+1"]
[EndTime "10:29:35 PDT"]
[Termination "Andreikka won by resignation"]

1. c4 {[%clk 0:03:00.9]} 1... e5 {[%clk 0:02:59.2]} 2. Nc3 {[%clk 0:03:00.5]}
2... Bb4 {[%clk 0:02:59]} 3. Nd5 {[%clk 0:03:00.1]} 3... Bc5 {[%clk 0:02:59.3]}
4. e3 {[%clk 0:02:54.9]} 4... Nf6 {[%clk 0:02:58.7]} 5. b4 {[%clk 0:02:43]} 5...
Be7 {[%clk 0:02:54.9]} 6. Nxe7 {[%clk 0:02:38.9]} 6... Qxe7 {[%clk 0:02:55.8]}
7. Bb2 {[%clk 0:02:39.5]} 7... O-O {[%clk 0:02:51.9]} 8. Qc2 {[%clk 0:02:32.3]}
8... Re8 {[%clk 0:02:49]} 9. a3 {[%clk 0:02:27.8]} 9... d6 {[%clk 0:02:44.6]}
10. Ne2 {[%clk 0:02:23.6]} 10... b6 {[%clk 0:02:38.5]} 11. Nc3 {[%clk
0:01:57.7]} 11... Bb7 {[%clk 0:02:36.6]} 12. f3 {[%clk 0:01:58]} 12... a5 {[%clk
0:02:23]} 13. Be2 {[%clk 0:01:43.7]} 13... axb4 {[%clk 0:02:09.5]} 14. axb4
{[%clk 0:01:44.6]} 14... Rxa1+ {[%clk 0:02:09.5]} 15. Bxa1 {[%clk 0:01:45.5]}
15... Nc6 {[%clk 0:01:48.6]} 16. Qb1 {[%clk 0:01:38.6]} 16... d5 {[%clk
0:01:18.2]} 17. Nxd5 {[%clk 0:01:37]} 17... Nxd5 {[%clk 0:01:17.1]} 18. cxd5
{[%clk 0:01:37.9]} 18... Nxb4 {[%clk 0:01:08]} 19. e4 {[%clk 0:01:34.4]} 19...
Ra8 {[%clk 0:00:51.9]} 20. Bc3 {[%clk 0:00:53.9]} 20... Na2 {[%clk 0:00:48.3]}
21. Ba1 {[%clk 0:00:54.5]} 21... Nb4 {[%clk 0:00:46.6]} 22. Kf2 {[%clk 0:00:55]}
22... Ba6 {[%clk 0:00:45.1]} 23. Bc3 {[%clk 0:00:54.7]} 23... Qc5+ {[%clk
0:00:40]} 24. Kg3 {[%clk 0:00:38.8]} 24... Bxe2 {[%clk 0:00:39.8]} 25. Bxb4
{[%clk 0:00:39.1]} 25... Qb5 {[%clk 0:00:39.8]} 26. Rc1 {[%clk 0:00:34.3]} 26...
Bd3 {[%clk 0:00:33.8]} 27. Qb2 {[%clk 0:00:34.1]} 27... Qd7 {[%clk 0:00:31.1]}
28. Qxe5 {[%clk 0:00:31.9]} 28... Rc8 {[%clk 0:00:23.2]} 29. Rc3 {[%clk
0:00:30.8]} 29... Bb5 {[%clk 0:00:22.6]} 30. d4 {[%clk 0:00:31.1]} 30... c6
{[%clk 0:00:19.4]} 31. dxc6 {[%clk 0:00:30.7]} 31... Bxc6 {[%clk 0:00:19.9]} 32.
d5 {[%clk 0:00:30.7]} 32... Bb7 {[%clk 0:00:19.8]} 33. Rxc8+ {[%clk 0:00:30.7]}
33... Bxc8 {[%clk 0:00:15.4]} 34. Qb8 {[%clk 0:00:28.8]} 34... b5 {[%clk
0:00:15.2]} 35. h4 {[%clk 0:00:12.9]} 35... h6 {[%clk 0:00:15.1]} 36. Bc3 {[%clk
0:00:11.7]} 36... f5 {[%clk 0:00:13.2]} 37. Qe5 {[%clk 0:00:10.4]} 37... fxe4
{[%clk 0:00:13.1]} 38. fxe4 {[%clk 0:00:04.8]} 38... Kh7 {[%clk 0:00:12.7]} 39.
Kh2 {[%clk 0:00:04.6]} 39... Qg4 {[%clk 0:00:12.5]} 40. Be1 {[%clk 0:00:04.4]}
40... Bd7 {[%clk 0:00:12.2]} 41. Kg1 {[%clk 0:00:01.9]} 41... b4 {[%clk
0:00:11.5]} 42. Bxb4 {[%clk 0:00:01.9]} 42... Qxh4 {[%clk 0:00:11.8]} 43. Qd4
{[%clk 0:00:02]} 43... Qg4 {[%clk 0:00:11.4]} 44. Bc3 {[%clk 0:00:02.9]} 44...
Bf5 {[%clk 0:00:11]} 45. exf5 {[%clk 0:00:02.7]} 45... Qg5 {[%clk 0:00:08.2]}
46. d6 {[%clk 0:00:02.8]} 46... Qc1+ {[%clk 0:00:08.1]} 47. Kh2 {[%clk
0:00:03.4]} 1-0

[Event "*** SCC Grand Prix: Titled Tuesday Blitz"]
[Site "Chess.com"]
[Date "2020.06.02"]
[Round "3"]
[White "Torrentec"]
[Black "jlandaw"]
[Result "0-1"]
[WhiteElo "2313"]
[BlackElo "2524"]
[TimeControl "180+1"]
[EndTime "10:29:35 PDT"]
[Termination "jlandaw won by resignation"]

1. e4 {[%clk 0:03:00.9]} 1... e5 {[%clk 0:03:00.2]} 2. Nf3 {[%clk 0:03:00.7]}
2... Nc6 {[%clk 0:03:00.6]} 3. Bc4 {[%clk 0:02:55.1]} 3... Bc5 {[%clk 0:03:00]}
4. d3 {[%clk 0:02:55]} 4... Nf6 {[%clk 0:02:59.9]} 5. Be3 {[%clk 0:02:55]} 5...
Bb6 {[%clk 0:02:59.3]} 6. Nc3 {[%clk 0:02:54.8]} 6... d6 {[%clk 0:02:57.5]} 7.
O-O {[%clk 0:02:54.5]} 7... Bg4 {[%clk 0:02:55.1]} 8. h3 {[%clk 0:02:54.3]} 8...
Bh5 {[%clk 0:02:54.9]} 9. Bb5 {[%clk 0:02:49.6]} 9... O-O {[%clk 0:02:52.4]} 10.
Bg5 {[%clk 0:02:43.4]} 10... h6 {[%clk 0:02:38.2]} 11. Bxf6 {[%clk 0:02:40]}
11... Qxf6 {[%clk 0:02:39.1]} 12. g4 {[%clk 0:02:39.9]} 12... Bg6 {[%clk
0:02:38.5]} 13. Nd5 {[%clk 0:02:39.5]} 13... Qd8 {[%clk 0:02:38.7]} 14. Ne3
{[%clk 0:02:33.3]} 14... Nd4 {[%clk 0:02:22.9]} 15. Nxd4 {[%clk 0:02:30.7]}
15... Bxd4 {[%clk 0:02:23.8]} 16. Bc4 {[%clk 0:02:25.8]} 16... c6 {[%clk
0:02:15.3]} 17. Bb3 {[%clk 0:02:25.6]} 17... Bxb2 {[%clk 0:02:12.8]} 18. Rb1
{[%clk 0:02:24.8]} 18... Bd4 {[%clk 0:02:12.9]} 19. Kg2 {[%clk 0:02:23.4]} 19...
Qg5 {[%clk 0:02:02.3]} 20. Nf5 {[%clk 0:02:18.1]} 20... Bxf5 {[%clk 0:01:58.8]}
21. exf5 {[%clk 0:02:19]} 21... d5 {[%clk 0:01:57.8]} 22. Qf3 {[%clk 0:02:18.2]}
22... Rfe8 {[%clk 0:01:56.9]} 23. Rbe1 {[%clk 0:02:16.9]} 23... Re7 {[%clk
0:01:50]} 24. c4 {[%clk 0:02:16.7]} 24... dxc4 {[%clk 0:01:38.2]} 25. Bxc4
{[%clk 0:02:17.6]} 25... a5 {[%clk 0:01:28.9]} 26. a4 {[%clk 0:02:16.7]} 26...
Rae8 {[%clk 0:01:27]} 27. Re4 {[%clk 0:02:13.5]} 27... Rd8 {[%clk 0:01:26.2]}
28. Rb1 {[%clk 0:02:10.6]} 28... Qd2 {[%clk 0:01:23.1]} 29. Qe2 {[%clk
0:02:09.6]} 29... Qxe2 {[%clk 0:01:22.4]} 30. Rxe2 {[%clk 0:02:08.7]} 30... Bc3
{[%clk 0:01:21.2]} 31. Rc1 {[%clk 0:02:03.8]} 31... Bb4 {[%clk 0:01:21]} 32. Re4
{[%clk 0:02:02.2]} 32... Rd4 {[%clk 0:01:15.3]} 33. Kf3 {[%clk 0:02:00.2]} 33...
Kf8 {[%clk 0:01:14.6]} 34. h4 {[%clk 0:01:59.8]} 34... f6 {[%clk 0:01:14]} 35.
Rg1 {[%clk 0:01:57.1]} 35... Bd2 {[%clk 0:01:12.3]} 36. Rd1 {[%clk 0:01:53.3]}
36... Bb4 {[%clk 0:01:05.9]} 37. Rg1 {[%clk 0:01:50.1]} 37... Rxe4 {[%clk
0:01:00.6]} 38. dxe4 {[%clk 0:01:37.4]} 38... Rd7 {[%clk 0:01:00.4]} 39. g5
{[%clk 0:01:37.1]} 39... hxg5 {[%clk 0:00:59.9]} 40. hxg5 {[%clk 0:01:35.9]}
40... Rd4 {[%clk 0:01:00.5]} 41. Be6 {[%clk 0:01:33.5]} 41... fxg5 {[%clk
0:00:56.8]} 42. Rxg5 {[%clk 0:01:32.8]} 42... Bd2 {[%clk 0:00:55.6]} 43. Rh5
{[%clk 0:01:30]} 43... Rxa4 {[%clk 0:00:55.1]} 44. Rh8+ {[%clk 0:01:28.8]} 44...
Ke7 {[%clk 0:00:55.7]} 45. Rg8 {[%clk 0:01:19.2]} 45... Bh6 {[%clk 0:00:55]} 46.
Rc8 {[%clk 0:01:16.4]} 46... Kd6 {[%clk 0:00:53.8]} 47. Rh8 {[%clk 0:01:11]}
47... Bg5 {[%clk 0:00:53.5]} 48. Kg4 {[%clk 0:01:07.2]} 48... Bf6 {[%clk
0:00:52.8]} 49. f3 {[%clk 0:01:06.3]} 49... Ra1 {[%clk 0:00:51.7]} 50. Rb8
{[%clk 0:01:04]} 50... Rg1+ {[%clk 0:00:49.8]} 51. Kh3 {[%clk 0:01:01.7]} 51...
Kc7 {[%clk 0:00:50]} 52. Rc8+ {[%clk 0:01:00.9]} 52... Kb6 {[%clk 0:00:50.1]}
53. Re8 {[%clk 0:00:55.6]} 53... Kb5 {[%clk 0:00:48.5]} 54. Bc8 {[%clk 0:00:54]}
54... b6 {[%clk 0:00:48.3]} 55. f4 {[%clk 0:00:54.2]} 55... exf4 {[%clk
0:00:39]} 56. e5 {[%clk 0:00:54.3]} 56... f3 {[%clk 0:00:21.8]} 57. exf6 {[%clk
0:00:39.4]} 57... gxf6 {[%clk 0:00:22.7]} 58. Bb7 {[%clk 0:00:16.3]} 58... f2
{[%clk 0:00:22.2]} 59. Bxc6+ {[%clk 0:00:13.6]} 59... Kxc6 {[%clk 0:00:21.5]}
60. Re6+ {[%clk 0:00:14.5]} 60... Kb5 {[%clk 0:00:21.6]} 61. Rxf6 {[%clk
0:00:14.3]} 61... f1=Q+ {[%clk 0:00:21.5]} 0-1

[Event "*** SCC Grand Prix: Titled Tuesday Blitz"]
[Site "Chess.com"]
[Date "2020.06.02"]
[Round "3"]
[White "ashookk"]
[Black "Boninknights"]
[Result "1/2-1/2"]
[WhiteElo "2208"]
[BlackElo "2388"]
[TimeControl "180+1"]
[EndTime "10:29:35 PDT"]
[Termination "Game drawn - insufficient material"]

1. Nf3 {[%clk 0:03:00.9]} 1... Nf6 {[%clk 0:02:58.4]} 2. c4 {[%clk 0:03:01.8]}
2... g6 {[%clk 0:02:57.4]} 3. Nc3 {[%clk 0:03:02.7]} 3... Bg7 {[%clk 0:02:56.6]}
4. d4 {[%clk 0:03:03.3]} 4... O-O {[%clk 0:02:54.3]} 5. e4 {[%clk 0:03:03.5]}
5... d6 {[%clk 0:02:53.5]} 6. Be2 {[%clk 0:03:04.2]} 6... e5 {[%clk 0:02:52.6]}
7. O-O {[%clk 0:03:05.1]} 7... exd4 {[%clk 0:02:51.7]} 8. Nxd4 {[%clk
0:03:04.9]} 8... Re8 {[%clk 0:02:51.5]} 9. f3 {[%clk 0:03:05.4]} 9... Nc6 {[%clk
0:02:50.3]} 10. Be3 {[%clk 0:03:04.9]} 10... Nh5 {[%clk 0:02:49.7]} 11. g4
{[%clk 0:02:58.2]} 11... Nf4 {[%clk 0:02:48.4]} 12. Nxc6 {[%clk 0:02:58.8]}
12... Nxe2+ {[%clk 0:02:45.7]} 13. Qxe2 {[%clk 0:02:59]} 13... bxc6 {[%clk
0:02:44.5]} 14. Qd2 {[%clk 0:02:59.5]} 14... c5 {[%clk 0:02:36.2]} 15. Bg5
{[%clk 0:02:52.4]} 15... f6 {[%clk 0:02:31.3]} 16. Bh4 {[%clk 0:02:47]} 16...
Be6 {[%clk 0:02:23.4]} 17. b3 {[%clk 0:02:45.1]} 17... Qd7 {[%clk 0:02:21.2]}
18. Rad1 {[%clk 0:02:34.7]} 18... Qf7 {[%clk 0:02:16.8]} 19. h3 {[%clk
0:02:24.9]} 19... f5 {[%clk 0:02:11.1]} 20. exf5 {[%clk 0:02:11.2]} 20... gxf5
{[%clk 0:02:08.6]} 21. Rde1 {[%clk 0:01:59.8]} 21... a5 {[%clk 0:02:03.7]} 22.
Re2 {[%clk 0:01:42.2]} 22... Bd4+ {[%clk 0:01:45.3]} 23. Kg2 {[%clk 0:01:41.7]}
23... Rf8 {[%clk 0:01:28]} 24. Ree1 {[%clk 0:01:17]} 24... Rae8 {[%clk
0:01:21.8]} 25. Ne2 {[%clk 0:01:15.9]} 25... Bg7 {[%clk 0:01:15.2]} 26. Nf4
{[%clk 0:01:15.9]} 26... Bd7 {[%clk 0:01:11.5]} 27. Nd5 {[%clk 0:01:14.4]} 27...
Rxe1 {[%clk 0:01:03.8]} 28. Qxe1 {[%clk 0:01:10.8]} 28... Re8 {[%clk 0:01:01.1]}
29. Qd2 {[%clk 0:01:01.6]} 29... Bc6 {[%clk 0:00:58.8]} 30. Re1 {[%clk
0:00:44.8]} 30... Rxe1 {[%clk 0:00:53.7]} 31. Bxe1 {[%clk 0:00:42.8]} 31... Bxd5
{[%clk 0:00:50.2]} 32. Qxd5 {[%clk 0:00:40.6]} 32... fxg4 {[%clk 0:00:41]} 33.
Qxf7+ {[%clk 0:00:38.2]} 33... Kxf7 {[%clk 0:00:37.7]} 34. fxg4 {[%clk
0:00:38.6]} 34... a4 {[%clk 0:00:33.8]} 35. bxa4 {[%clk 0:00:38.3]} 35... Ke8
{[%clk 0:00:30.7]} 36. Kf3 {[%clk 0:00:38.8]} 36... c6 {[%clk 0:00:28.5]} 37.
Ke4 {[%clk 0:00:38.7]} 37... Kd7 {[%clk 0:00:27]} 38. Kf5 {[%clk 0:00:38.5]}
38... d5 {[%clk 0:00:24.8]} 39. Bf2 {[%clk 0:00:19.8]} 39... dxc4 {[%clk
0:00:21.8]} 40. Bxc5 {[%clk 0:00:20.2]} 40... c3 {[%clk 0:00:19.4]} 41. Ba3
{[%clk 0:00:16.8]} 41... Bd4 {[%clk 0:00:15.1]} 42. Ke4 {[%clk 0:00:16.2]} 42...
c5 {[%clk 0:00:13.9]} 43. Kd3 {[%clk 0:00:15.6]} 43... Kc6 {[%clk 0:00:12.7]}
44. h4 {[%clk 0:00:12.8]} 44... Kb6 {[%clk 0:00:10.3]} 45. h5 {[%clk 0:00:09.5]}
45... Ka5 {[%clk 0:00:09.4]} 46. g5 {[%clk 0:00:09.2]} 46... Kxa4 {[%clk
0:00:08.7]} 47. Bxc5 {[%clk 0:00:02.5]} 47... Bxc5 {[%clk 0:00:06.9]} 48. Kxc3
{[%clk 0:00:03]} 48... Be3 {[%clk 0:00:06.3]} 49. g6 {[%clk 0:00:02.8]} 49...
hxg6 {[%clk 0:00:06]} 50. hxg6 {[%clk 0:00:02.9]} 50... Bh6 {[%clk 0:00:05.6]}
51. Kc4 {[%clk 0:00:02.6]} 51... Bg7 {[%clk 0:00:05.3]} 52. Kd5 {[%clk
0:00:02.9]} 52... Ka3 {[%clk 0:00:05.3]} 53. Ke6 {[%clk 0:00:03.8]} 53... Kxa2
{[%clk 0:00:05.2]} 54. Kf7 {[%clk 0:00:04.7]} 54... Be5 {[%clk 0:00:04.2]} 55.
g7 {[%clk 0:00:05.6]} 55... Bxg7 {[%clk 0:00:03.1]} 1/2-1/2